[Event "*** Titled Tuesday Blitz"]
[Site "Chess.com"]
[Date "2020.12.29"]
[Round "6"]
[White "ambaixador"]
[Black "ChampStan"]
[Result "1-0"]
[WhiteElo "2422"]
[BlackElo "2183"]
[TimeControl "180+1"]
[EndTime "11:05:07 PST"]
[Termination "ambaixador won by checkmate"]

1. e4 {[%clk 0:03:00.9]} 1... e5 {[%clk 0:02:56.5]} 2. Nf3 {[%clk 0:03:00.8]}
2... Nc6 {[%clk 0:02:56.7]} 3. Bb5 {[%clk 0:03:00.7]} 3... Nf6 {[%clk
0:02:55.6]} 4. O-O {[%clk 0:03:00.2]} 4... Nxe4 {[%clk 0:02:55.5]} 5. d4 {[%clk
0:02:55.4]} 5... Nd6 {[%clk 0:02:50.6]} 6. dxe5 {[%clk 0:02:48.4]} 6... Nxb5
{[%clk 0:02:47.7]} 7. a4 {[%clk 0:02:48.2]} 7... Nbd4 {[%clk 0:02:41.7]} 8. Nxd4
{[%clk 0:02:47.4]} 8... Nxd4 {[%clk 0:02:40]} 9. Qxd4 {[%clk 0:02:48.3]} 9... d6
{[%clk 0:02:38.3]} 10. Rd1 {[%clk 0:02:39]} 10... Be6 {[%clk 0:02:31.6]} 11. Nc3
{[%clk 0:02:33.1]} 11... Qd7 {[%clk 0:01:57.5]} 12. Bf4 {[%clk 0:02:27.2]} 12...
g5 {[%clk 0:01:30.3]} 13. Bxg5 {[%clk 0:02:21.8]} 13... Bg7 {[%clk 0:01:25]} 14.
Bf6 {[%clk 0:02:18.4]} 14... Bxf6 {[%clk 0:01:21.8]} 15. exf6 {[%clk 0:02:19.3]}
15... Qc6 {[%clk 0:01:20]} 16. Ne4 {[%clk 0:01:50.5]} 16... Rg8 {[%clk
0:01:16.9]} 17. c3 {[%clk 0:01:35.1]} 17... a6 {[%clk 0:01:07.1]} 18. b4 {[%clk
0:01:30.6]} 18... O-O-O {[%clk 0:00:40.8]} 19. b5 {[%clk 0:01:29.5]} 19... axb5
{[%clk 0:00:37.4]} 20. axb5 {[%clk 0:01:30.4]} 20... Qxb5 {[%clk 0:00:18.6]} 21.
Ra8+ {[%clk 0:01:28.9]} 21... Kd7 {[%clk 0:00:18.1]} 22. Nxd6 {[%clk 0:01:10.5]}
22... Qe2 {[%clk 0:00:03.9]} 23. Ne4+ {[%clk 0:00:50.3]} 23... Kc6 {[%clk
0:00:03.6]} 24. Qc5# {[%clk 0:00:49.9]} 1-0

[Event "*** Titled Tuesday Blitz"]
[Site "Chess.com"]
[Date "2020.12.29"]
[Round "6"]
[White "esapunov"]
[Black "FontVella8"]
[Result "0-1"]
[WhiteElo "2695"]
[BlackElo "2533"]
[TimeControl "180+1"]
[EndTime "11:05:12 PST"]
[Termination "FontVella8 won by resignation"]

1. c4 {[%clk 0:03:00.9]} 1... Nf6 {[%clk 0:02:59.3]} 2. Nf3 {[%clk 0:03:00.9]}
2... c6 {[%clk 0:02:59.8]} 3. b3 {[%clk 0:03:00.5]} 3... d5 {[%clk 0:03:00.4]}
4. Bb2 {[%clk 0:03:00.7]} 4... e6 {[%clk 0:03:01]} 5. g3 {[%clk 0:03:00.6]} 5...
Nbd7 {[%clk 0:03:01.4]} 6. Bg2 {[%clk 0:03:00.9]} 6... Bd6 {[%clk 0:03:01.2]} 7.
Nc3 {[%clk 0:03:01]} 7... O-O {[%clk 0:03:01.7]} 8. O-O {[%clk 0:03:01]} 8... b6
{[%clk 0:03:01.1]} 9. Rc1 {[%clk 0:02:58.6]} 9... Bb7 {[%clk 0:03:01.6]} 10.
cxd5 {[%clk 0:02:50.8]} 10... exd5 {[%clk 0:03:00.1]} 11. d3 {[%clk 0:02:49]}
11... Rc8 {[%clk 0:02:59.5]} 12. e3 {[%clk 0:02:48.5]} 12... c5 {[%clk
0:02:58.7]} 13. Nb1 {[%clk 0:02:48.6]} 13... Qe7 {[%clk 0:02:57]} 14. Nbd2
{[%clk 0:02:48.2]} 14... Rfd8 {[%clk 0:02:52]} 15. Qc2 {[%clk 0:02:47.9]} 15...
b5 {[%clk 0:02:47.4]} 16. Rfe1 {[%clk 0:02:46.6]} 16... Ne5 {[%clk 0:02:17.7]}
17. Qb1 {[%clk 0:02:30.3]} 17... a6 {[%clk 0:01:42.4]} 18. Nxe5 {[%clk 0:02:29]}
18... Bxe5 {[%clk 0:01:42.7]} 19. Bxe5 {[%clk 0:02:29.3]} 19... Qxe5 {[%clk
0:01:42.6]} 20. d4 {[%clk 0:02:29.9]} 20... Qe7 {[%clk 0:01:37.9]} 21. dxc5
{[%clk 0:02:29]} 21... Rxc5 {[%clk 0:01:38.8]} 22. Rxc5 {[%clk 0:02:27.8]} 22...
Qxc5 {[%clk 0:01:38.7]} 23. Rc1 {[%clk 0:02:28.4]} 23... Qb4 {[%clk 0:01:34.5]}
24. Nf3 {[%clk 0:02:28.3]} 24... Ne4 {[%clk 0:01:27.4]} 25. Qb2 {[%clk
0:02:26.5]} 25... Rc8 {[%clk 0:01:22.8]} 26. Rxc8+ {[%clk 0:02:23.9]} 26... Bxc8
{[%clk 0:01:23]} 27. Qe5 {[%clk 0:02:05.2]} 27... Be6 {[%clk 0:01:13.2]} 28.
Qb8+ {[%clk 0:02:02.1]} 28... Qf8 {[%clk 0:01:13.2]} 29. Qa7 {[%clk 0:01:52.9]}
29... Qc8 {[%clk 0:01:09.7]} 30. Bf1 {[%clk 0:01:29.6]} 30... h6 {[%clk
0:01:09.5]} 31. Bd3 {[%clk 0:01:14.7]} 31... Bh3 {[%clk 0:00:43]} 0-1

[Event "*** Titled Tuesday Blitz"]
[Site "Chess.com"]
[Date "2020.12.29"]
[Round "6"]
[White "zverr1"]
[Black "chess4life23"]
[Result "0-1"]
[WhiteElo "2430"]
[BlackElo "2261"]
[TimeControl "180+1"]
[EndTime "11:05:13 PST"]
[Termination "chess4life23 won by resignation"]

1. e4 {[%clk 0:03:00.9]} 1... c6 {[%clk 0:02:59.5]} 2. d4 {[%clk 0:03:00.8]}
2... d5 {[%clk 0:03:00.4]} 3. e5 {[%clk 0:03:01.1]} 3... Bf5 {[%clk 0:02:59.4]}
4. Nf3 {[%clk 0:03:00.2]} 4... e6 {[%clk 0:02:59.2]} 5. Be2 {[%clk 0:02:58]}
5... h6 {[%clk 0:02:59.5]} 6. Nbd2 {[%clk 0:02:54.5]} 6... Ne7 {[%clk
0:02:59.7]} 7. c4 {[%clk 0:02:54.4]} 7... dxc4 {[%clk 0:02:55.7]} 8. Nxc4 {[%clk
0:02:54.3]} 8... Nd5 {[%clk 0:02:55.5]} 9. a3 {[%clk 0:02:52.1]} 9... Nd7 {[%clk
0:02:54.8]} 10. h3 {[%clk 0:02:44.3]} 10... Be7 {[%clk 0:02:49.2]} 11. g4 {[%clk
0:02:35.8]} 11... Be4 {[%clk 0:02:38.9]} 12. Bd3 {[%clk 0:02:35.9]} 12... Bxd3
{[%clk 0:02:28.4]} 13. Qxd3 {[%clk 0:02:36.8]} 13... Qc7 {[%clk 0:02:23.4]} 14.
b4 {[%clk 0:02:28.5]} 14... N7b6 {[%clk 0:02:16.7]} 15. Na5 {[%clk 0:02:22.9]}
15... Nd7 {[%clk 0:02:01.1]} 16. Bd2 {[%clk 0:02:21.5]} 16... O-O {[%clk
0:01:35.8]} 17. Rc1 {[%clk 0:02:19.8]} 17... f6 {[%clk 0:01:34.3]} 18. b5 {[%clk
0:02:12.1]} 18... c5 {[%clk 0:01:20.1]} 19. Qg6 {[%clk 0:02:12]} 19... Rae8
{[%clk 0:01:00.3]} 20. Nc4 {[%clk 0:01:55.3]} 20... cxd4 {[%clk 0:00:46.1]} 21.
Bxh6 {[%clk 0:01:50.5]} 21... Rf7 {[%clk 0:00:39]} 22. Nd6 {[%clk 0:01:49.1]}
22... Bxd6 {[%clk 0:00:35.7]} 23. Rxc7 {[%clk 0:01:46.5]} 23... Bxc7 {[%clk
0:00:36.6]} 24. exf6 {[%clk 0:01:43.5]} 24... N5xf6 {[%clk 0:00:20.3]} 25. Ng5
{[%clk 0:01:41.3]} 25... Rfe7 {[%clk 0:00:18]} 26. Ne4 {[%clk 0:01:20]} 26...
Nd5 {[%clk 0:00:14.4]} 27. Bd2 {[%clk 0:01:14.7]} 27... Ne5 {[%clk 0:00:14.5]}
28. Qh5 {[%clk 0:01:12.7]} 28... Nd3+ {[%clk 0:00:11.6]} 29. Kf1 {[%clk
0:01:11.1]} 29... Rf7 {[%clk 0:00:12]} 30. Rh2 {[%clk 0:01:06.7]} 30... Bxh2
{[%clk 0:00:10.6]} 31. Kg2 {[%clk 0:01:03.8]} 31... Bf4 {[%clk 0:00:11.1]} 32.
Be1 {[%clk 0:01:00.6]} 32... Bc1 {[%clk 0:00:09.8]} 33. f3 {[%clk 0:00:58.7]}
33... N3f4+ {[%clk 0:00:09.8]} 0-1

[Event "*** Titled Tuesday Blitz"]
[Site "Chess.com"]
[Date "2020.12.29"]
[Round "6"]
[White "Matols"]
[Black "TheCairnTerrier"]
[Result "1-0"]
[WhiteElo "2265"]
[BlackElo "2085"]
[TimeControl "180+1"]
[EndTime "11:05:14 PST"]
[Termination "Matols won on time"]

1. d4 {[%clk 0:03:00.9]} 1... Nf6 {[%clk 0:02:58.4]} 2. c4 {[%clk 0:03:00.6]}
2... g6 {[%clk 0:02:58.6]} 3. g3 {[%clk 0:03:00.5]} 3... Bg7 {[%clk 0:02:59]} 4.
Bg2 {[%clk 0:03:01]} 4... O-O {[%clk 0:02:59.5]} 5. Nc3 {[%clk 0:03:01.5]} 5...
c6 {[%clk 0:02:57.9]} 6. Nf3 {[%clk 0:03:01.3]} 6... d5 {[%clk 0:02:58.4]} 7. b3
{[%clk 0:03:01.5]} 7... Ne4 {[%clk 0:02:55.8]} 8. Bb2 {[%clk 0:02:57.3]} 8...
Nxc3 {[%clk 0:02:55.6]} 9. Bxc3 {[%clk 0:02:56.7]} 9... Nd7 {[%clk 0:02:56.3]}
10. O-O {[%clk 0:02:55.9]} 10... Nf6 {[%clk 0:02:55.5]} 11. Nd2 {[%clk
0:02:52.4]} 11... Bf5 {[%clk 0:02:50.7]} 12. f3 {[%clk 0:02:43.1]} 12... Qd7
{[%clk 0:02:50.8]} 13. e4 {[%clk 0:02:40.3]} 13... dxe4 {[%clk 0:02:45.8]} 14.
fxe4 {[%clk 0:02:40.1]} 14... Bh3 {[%clk 0:02:46.7]} 15. e5 {[%clk 0:02:34.2]}
15... Nh5 {[%clk 0:02:16.7]} 16. Ne4 {[%clk 0:02:30.6]} 16... f6 {[%clk
0:02:09.9]} 17. Nc5 {[%clk 0:02:18]} 17... Qc8 {[%clk 0:02:08.6]} 18. e6 {[%clk
0:02:03.6]} 18... Bxe6 {[%clk 0:02:06.1]} 19. Qe1 {[%clk 0:01:52.8]} 19... Bh3
{[%clk 0:02:02.9]} 20. Qxe7 {[%clk 0:01:50.1]} 20... Bxg2 {[%clk 0:02:01.7]} 21.
Kxg2 {[%clk 0:01:48.9]} 21... Re8 {[%clk 0:01:56.4]} 22. Qxb7 {[%clk 0:01:45.2]}
22... Re2+ {[%clk 0:01:55.5]} 23. Rf2 {[%clk 0:01:40.4]} 23... Nf4+ {[%clk
0:01:13.8]} 24. gxf4 {[%clk 0:01:34.5]} 24... Qg4+ {[%clk 0:01:11.3]} 25. Kf1
{[%clk 0:01:33.8]} 25... Rae8 {[%clk 0:01:03.7]} 26. Qxc6 {[%clk 0:01:23.7]}
26... Rxf2+ {[%clk 0:00:13]} 27. Kxf2 {[%clk 0:01:23.2]} 27... Re2+ {[%clk
0:00:07.1]} 28. Kf1 {[%clk 0:01:22.2]} 28... Rxh2 {[%clk 0:00:05]} 29. Qe8+
{[%clk 0:01:18]} 29... Bf8 {[%clk 0:00:04.7]} 30. Qe6+ {[%clk 0:01:18.3]} 30...
Qxe6 {[%clk 0:00:03.9]} 31. Nxe6 {[%clk 0:01:19.2]} 31... Bd6 {[%clk 0:00:03.3]}
32. Kg1 {[%clk 0:01:12.8]} 32... Rc2 {[%clk 0:00:02.4]} 33. Ba5 {[%clk
0:01:07.6]} 33... Kf7 {[%clk 0:00:02.4]} 34. d5 {[%clk 0:01:07]} 1-0

[Event "*** Titled Tuesday Blitz"]
[Site "Chess.com"]
[Date "2020.12.29"]
[Round "6"]
[White "DryCounty"]
[Black "renehp"]
[Result "1-0"]
[WhiteElo "2628"]
[BlackElo "2453"]
[TimeControl "180+1"]
[EndTime "11:05:17 PST"]
[Termination "DryCounty won by resignation"]

1. e4 {[%clk 0:03:00.9]} 1... d5 {[%clk 0:02:59.7]} 2. exd5 {[%clk 0:03:00.4]}
2... Nf6 {[%clk 0:02:59]} 3. d4 {[%clk 0:03:00]} 3... Bg4 {[%clk 0:02:57.9]} 4.
Be2 {[%clk 0:02:58.7]} 4... Bxe2 {[%clk 0:02:57.3]} 5. Qxe2 {[%clk 0:02:57.4]}
5... Qxd5 {[%clk 0:02:56.8]} 6. Nf3 {[%clk 0:02:57.8]} 6... Nc6 {[%clk
0:02:57.1]} 7. Nc3 {[%clk 0:02:55.9]} 7... Qh5 {[%clk 0:02:53.5]} 8. Bf4 {[%clk
0:02:50.8]} 8... O-O-O {[%clk 0:02:52.1]} 9. O-O-O {[%clk 0:02:51.2]} 9... e6
{[%clk 0:02:48]} 10. Qc4 {[%clk 0:02:44.1]} 10... Nd5 {[%clk 0:02:43.5]} 11.
Nxd5 {[%clk 0:02:40.7]} 11... Qxd5 {[%clk 0:02:44.2]} 12. Qxd5 {[%clk
0:02:39.1]} 12... Rxd5 {[%clk 0:02:43.9]} 13. c4 {[%clk 0:02:33.3]} 13... Rf5
{[%clk 0:02:36.6]} 14. Bg3 {[%clk 0:02:32.2]} 14... Bd6 {[%clk 0:02:35.6]} 15.
Rhe1 {[%clk 0:02:23.6]} 15... Bxg3 {[%clk 0:02:32.7]} 16. hxg3 {[%clk
0:02:23.1]} 16... Rd8 {[%clk 0:02:32.4]} 17. a3 {[%clk 0:02:19.1]} 17... a6
{[%clk 0:02:28.4]} 18. b4 {[%clk 0:02:17.6]} 18... b5 {[%clk 0:02:22.5]} 19. c5
{[%clk 0:02:13.2]} 19... Rfd5 {[%clk 0:02:18.2]} 20. Re4 {[%clk 0:02:03.5]}
20... Kb7 {[%clk 0:01:53.5]} 21. Kc2 {[%clk 0:02:02.2]} 21... a5 {[%clk
0:01:53]} 22. bxa5 {[%clk 0:01:48.1]} 22... Ka6 {[%clk 0:01:50.8]} 23. Kc3
{[%clk 0:01:40.5]} 23... e5 {[%clk 0:01:42.6]} 24. Rh1 {[%clk 0:01:26.2]} 24...
exd4+ {[%clk 0:01:39.8]} 25. Kd2 {[%clk 0:01:21.5]} 25... h6 {[%clk 0:01:37.1]}
26. Rg4 {[%clk 0:01:09.8]} 26... Rxc5 {[%clk 0:01:35.1]} 27. Rxg7 {[%clk
0:01:08.5]} 27... d3 {[%clk 0:01:31.4]} 28. Rxh6 {[%clk 0:01:01.7]} 28... Kxa5
{[%clk 0:01:31.1]} 29. Rxf7 {[%clk 0:00:55.9]} 29... Rc2+ {[%clk 0:01:13.1]} 30.
Ke3 {[%clk 0:00:55.7]} 30... Ne5 {[%clk 0:00:54]} 31. Nxe5 {[%clk 0:00:43.7]}
31... d2 {[%clk 0:00:50.2]} 32. Rh1 {[%clk 0:00:37.6]} 32... Rc1 {[%clk
0:00:48.3]} 33. Rd1 {[%clk 0:00:25.8]} 33... Rxd1 {[%clk 0:00:46]} 34. Nc6+
{[%clk 0:00:25.3]} 1-0

[Event "*** Titled Tuesday Blitz"]
[Site "Chess.com"]
[Date "2020.12.29"]
[Round "6"]
[White "OrtizAnahi2001"]
[Black "Chessdreamer2020"]
[Result "0-1"]
[WhiteElo "2312"]
[BlackElo "2492"]
[TimeControl "180+1"]
[EndTime "11:05:17 PST"]
[Termination "Chessdreamer2020 won by resignation"]

1. d4 {[%clk 0:03:00.9]} 1... d6 {[%clk 0:03:00.1]} 2. c4 {[%clk 0:03:00.3]}
2... e5 {[%clk 0:02:59.9]} 3. dxe5 {[%clk 0:02:58.2]} 3... dxe5 {[%clk
0:02:59.8]} 4. Qxd8+ {[%clk 0:02:57.4]} 4... Kxd8 {[%clk 0:03:00.7]} 5. Nc3
{[%clk 0:02:57.6]} 5... c6 {[%clk 0:03:01]} 6. Nf3 {[%clk 0:02:51.3]} 6... f6
{[%clk 0:03:00.3]} 7. Be3 {[%clk 0:02:46.8]} 7... Be6 {[%clk 0:03:00.4]} 8.
O-O-O+ {[%clk 0:02:41.8]} 8... Nd7 {[%clk 0:03:01]} 9. Nd2 {[%clk 0:02:37.7]}
9... Kc7 {[%clk 0:03:00.3]} 10. f3 {[%clk 0:02:38]} 10... Nh6 {[%clk 0:02:59.8]}
11. Bf2 {[%clk 0:02:37.6]} 11... Nf5 {[%clk 0:02:53.5]} 12. e4 {[%clk
0:02:37.2]} 12... Nd6 {[%clk 0:02:50.1]} 13. Be2 {[%clk 0:02:27]} 13... b6
{[%clk 0:02:49]} 14. Kb1 {[%clk 0:02:25.1]} 14... Be7 {[%clk 0:02:46.4]} 15. Rc1
{[%clk 0:02:25]} 15... Nb7 {[%clk 0:02:45.9]} 16. Nd5+ {[%clk 0:02:21.7]} 16...
Kd8 {[%clk 0:02:39.8]} 17. Nxe7 {[%clk 0:02:17]} 17... Kxe7 {[%clk 0:02:40.7]}
18. Rhd1 {[%clk 0:02:13.8]} 18... Rhd8 {[%clk 0:02:40.7]} 19. Nf1 {[%clk
0:02:08.1]} 19... Ndc5 {[%clk 0:02:40.2]} 20. Ne3 {[%clk 0:02:07.9]} 20... g6
{[%clk 0:02:38.4]} 21. g4 {[%clk 0:01:51.9]} 21... Bf7 {[%clk 0:02:33.9]} 22. h4
{[%clk 0:01:51.6]} 22... Ne6 {[%clk 0:02:34.1]} 23. Ng2 {[%clk 0:01:24.7]} 23...
Nd4 {[%clk 0:02:22.4]} 24. Bxd4 {[%clk 0:01:24.5]} 24... exd4 {[%clk 0:02:20]}
25. Nf4 {[%clk 0:01:22.9]} 25... Rd7 {[%clk 0:02:16.6]} 26. g5 {[%clk
0:01:20.7]} 26... Rad8 {[%clk 0:02:12.6]} 27. Nd3 {[%clk 0:01:16.3]} 27... Nc5
{[%clk 0:02:02.8]} 28. Rg1 {[%clk 0:01:08.9]} 28... Nxd3 {[%clk 0:01:58.6]} 29.
Bxd3 {[%clk 0:01:07.7]} 29... Rf8 {[%clk 0:01:54.2]} 30. f4 {[%clk 0:01:07.4]}
30... fxg5 {[%clk 0:01:45.2]} 31. hxg5 {[%clk 0:01:06.3]} 31... Bg8 {[%clk
0:01:42.5]} 32. Rcf1 {[%clk 0:01:05.8]} 32... Kd6 {[%clk 0:01:39.6]} 33. Kc2
{[%clk 0:01:00.8]} 33... Rc7 {[%clk 0:01:37.2]} 34. Kd2 {[%clk 0:00:58.9]} 34...
b5 {[%clk 0:01:32.6]} 35. b3 {[%clk 0:00:58.5]} 35... bxc4 {[%clk 0:01:31]} 36.
Bxc4 {[%clk 0:00:56.7]} 36... Bxc4 {[%clk 0:01:31.1]} 37. bxc4 {[%clk 0:00:57]}
37... Rb7 {[%clk 0:01:31.4]} 38. Kc2 {[%clk 0:00:50.8]} 38... Kc5 {[%clk
0:01:31]} 39. f5 {[%clk 0:00:50.8]} 39... Kxc4 {[%clk 0:01:19.5]} 40. fxg6
{[%clk 0:00:42.5]} 40... Rxf1 {[%clk 0:01:15]} 41. Rxf1 {[%clk 0:00:42.7]} 41...
d3+ {[%clk 0:01:10.1]} 42. Kd2 {[%clk 0:00:42.2]} 42... hxg6 {[%clk 0:01:08.9]}
43. Rf6 {[%clk 0:00:41.9]} 43... c5 {[%clk 0:01:06.9]} 44. Rxg6 {[%clk
0:00:40.3]} 44... Rb2+ {[%clk 0:01:07.4]} 45. Kd1 {[%clk 0:00:40]} 45... Kc3
{[%clk 0:01:06.4]} 46. Ke1 {[%clk 0:00:39]} 46... Rb1+ {[%clk 0:01:05.7]} 47.
Kf2 {[%clk 0:00:38.4]} 47... d2 {[%clk 0:01:06.1]} 48. Rd6 {[%clk 0:00:38.5]}
48... d1=Q {[%clk 0:01:05.6]} 49. Rxd1 {[%clk 0:00:38.5]} 49... Rxd1 {[%clk
0:01:06.2]} 50. g6 {[%clk 0:00:36.5]} 50... Rd6 {[%clk 0:01:05.4]} 0-1

[Event "*** Titled Tuesday Blitz"]
[Site "Chess.com"]
[Date "2020.12.29"]
[Round "6"]
[White "UCantHandleDenker"]
[Black "ChrisTool2"]
[Result "1-0"]
[WhiteElo "2560"]
[BlackElo "2369"]
[TimeControl "180+1"]
[EndTime "11:05:18 PST"]
[Termination "UCantHandleDenker won on time"]

1. Nf3 {[%clk 0:03:00.9]} 1... Nf6 {[%clk 0:02:59.6]} 2. g3 {[%clk 0:03:01.1]}
2... d5 {[%clk 0:02:56.8]} 3. Bg2 {[%clk 0:03:01.2]} 3... c5 {[%clk 0:02:54.9]}
4. O-O {[%clk 0:03:01.7]} 4... Nc6 {[%clk 0:02:54.8]} 5. d3 {[%clk 0:03:02.2]}
5... Bg4 {[%clk 0:02:53.4]} 6. Nbd2 {[%clk 0:03:02.6]} 6... d4 {[%clk
0:02:48.4]} 7. h3 {[%clk 0:03:00.2]} 7... Bh5 {[%clk 0:02:46.6]} 8. c3 {[%clk
0:02:53.6]} 8... e5 {[%clk 0:02:45.9]} 9. cxd4 {[%clk 0:02:52.7]} 9... exd4
{[%clk 0:02:45.7]} 10. g4 {[%clk 0:02:45.1]} 10... Bg6 {[%clk 0:02:44.9]} 11.
Nh4 {[%clk 0:02:45.4]} 11... Bd6 {[%clk 0:02:36.7]} 12. Ndf3 {[%clk 0:02:44.2]}
12... O-O {[%clk 0:02:28.6]} 13. Nxg6 {[%clk 0:02:36]} 13... hxg6 {[%clk
0:02:28.3]} 14. e4 {[%clk 0:02:33.1]} 14... dxe3 {[%clk 0:02:26.9]} 15. fxe3
{[%clk 0:02:32.3]} 15... Re8 {[%clk 0:02:24.6]} 16. Bd2 {[%clk 0:02:24.3]} 16...
Ne5 {[%clk 0:02:18.1]} 17. Nxe5 {[%clk 0:02:13.3]} 17... Bxe5 {[%clk 0:02:19]}
18. Qc2 {[%clk 0:02:13.3]} 18... Nxg4 {[%clk 0:02:01.3]} 19. hxg4 {[%clk
0:02:08.6]} 19... Qh4 {[%clk 0:02:00]} 20. Rf3 {[%clk 0:02:05.5]} 20... Rad8
{[%clk 0:01:14.7]} 21. Qc4 {[%clk 0:02:01.6]} 21... Re6 {[%clk 0:01:08.5]} 22.
Rh3 {[%clk 0:01:58.5]} 22... Qg5 {[%clk 0:01:03]} 23. Rf1 {[%clk 0:01:54.1]}
23... Rd7 {[%clk 0:00:55.7]} 24. Rhf3 {[%clk 0:01:35.8]} 24... Qh4 {[%clk
0:00:42.3]} 25. Rh3 {[%clk 0:01:33.7]} 25... Qg5 {[%clk 0:00:42.5]} 26. Bc1
{[%clk 0:01:30.8]} 26... Red6 {[%clk 0:00:26]} 27. Rd1 {[%clk 0:01:02.5]} 27...
b5 {[%clk 0:00:20.5]} 28. Qe4 {[%clk 0:00:54.5]} 28... c4 {[%clk 0:00:18.6]} 29.
d4 {[%clk 0:00:52.6]} 29... f6 {[%clk 0:00:04.5]} 30. Rf1 {[%clk 0:00:47.4]} 1-0

[Event "*** Titled Tuesday Blitz"]
[Site "Chess.com"]
[Date "2020.12.29"]
[Round "6"]
[White "ural58"]
[Black "Isajevsky_Anton"]
[Result "0-1"]
[WhiteElo "2404"]
[BlackElo "2579"]
[TimeControl "180+1"]
[EndTime "11:05:20 PST"]
[Termination "Isajevsky_Anton won by resignation"]

1. e4 {[%clk 0:03:00.9]} 1... c5 {[%clk 0:02:58.8]} 2. b3 {[%clk 0:03:00.5]}
2... Nc6 {[%clk 0:02:56.7]} 3. Bb2 {[%clk 0:03:00.5]} 3... Nf6 {[%clk
0:02:57.4]} 4. e5 {[%clk 0:02:59.3]} 4... Nd5 {[%clk 0:02:57]} 5. Nf3 {[%clk
0:02:56.8]} 5... d6 {[%clk 0:02:53.9]} 6. Bb5 {[%clk 0:02:55.5]} 6... Bd7 {[%clk
0:02:53.8]} 7. exd6 {[%clk 0:02:55.1]} 7... e6 {[%clk 0:02:44.7]} 8. O-O {[%clk
0:02:52.9]} 8... Bxd6 {[%clk 0:02:42.9]} 9. d4 {[%clk 0:02:40.7]} 9... O-O
{[%clk 0:02:39.3]} 10. c4 {[%clk 0:02:38.6]} 10... Nf6 {[%clk 0:02:21.6]} 11. d5
{[%clk 0:02:34.5]} 11... exd5 {[%clk 0:02:19.1]} 12. cxd5 {[%clk 0:02:34.6]}
12... Nb4 {[%clk 0:02:11.7]} 13. Bxd7 {[%clk 0:02:23.1]} 13... Qxd7 {[%clk
0:02:11.4]} 14. Bxf6 {[%clk 0:02:22.9]} 14... gxf6 {[%clk 0:02:11.3]} 15. Nc3
{[%clk 0:02:22.2]} 15... Qf5 {[%clk 0:02:08.8]} 16. Qb1 {[%clk 0:02:00]} 16...
Qh5 {[%clk 0:01:48.3]} 17. a3 {[%clk 0:01:58.6]} 17... Nxd5 {[%clk 0:01:45.5]}
18. Nxd5 {[%clk 0:01:45.5]} 18... Qxd5 {[%clk 0:01:46.4]} 19. Rd1 {[%clk
0:01:45.5]} 19... Qe6 {[%clk 0:01:40.2]} 20. Qd3 {[%clk 0:01:35.1]} 20... Rfd8
{[%clk 0:01:37.5]} 21. Qb5 {[%clk 0:01:31]} 21... b6 {[%clk 0:01:15.9]} 22. Re1
{[%clk 0:01:30.9]} 22... Qf5 {[%clk 0:01:10.7]} 23. Qa4 {[%clk 0:01:28.6]} 23...
Bf8 {[%clk 0:01:02.3]} 24. Re4 {[%clk 0:01:25.2]} 24... Rd3 {[%clk 0:00:57.7]}
25. Rg4+ {[%clk 0:01:24.2]} 25... Kh8 {[%clk 0:00:57.1]} 26. Rf4 {[%clk
0:01:17]} 26... Qg6 {[%clk 0:00:38.8]} 27. Re1 {[%clk 0:01:12.7]} 27... Rad8
{[%clk 0:00:37.7]} 28. Qxa7 {[%clk 0:01:10.2]} 28... Bh6 {[%clk 0:00:33.9]} 29.
Rh4 {[%clk 0:00:49.1]} 29... Rxf3 {[%clk 0:00:30.1]} 30. Rxh6 {[%clk 0:00:37.8]}
30... Qxh6 {[%clk 0:00:30.1]} 31. gxf3 {[%clk 0:00:37.9]} 31... Qg6+ {[%clk
0:00:30.5]} 32. Kh1 {[%clk 0:00:37.1]} 32... Rg8 {[%clk 0:00:28.9]} 0-1

[Event "*** Titled Tuesday Blitz"]
[Site "Chess.com"]
[Date "2020.12.29"]
[Round "6"]
[White "swimmerchess"]
[Black "pastouche06"]
[Result "1-0"]
[WhiteElo "2798"]
[BlackElo "2525"]
[TimeControl "180+1"]
[EndTime "11:05:22 PST"]
[Termination "swimmerchess won on time"]

1. e4 {[%clk 0:03:00.9]} 1... c6 {[%clk 0:02:59]} 2. d4 {[%clk 0:03:00.6]} 2...
d5 {[%clk 0:02:59.3]} 3. e5 {[%clk 0:03:01.1]} 3... Bf5 {[%clk 0:02:57.6]} 4. c4
{[%clk 0:03:00.5]} 4... e6 {[%clk 0:02:57.7]} 5. Nc3 {[%clk 0:03:00]} 5... Ne7
{[%clk 0:02:56.3]} 6. Nge2 {[%clk 0:02:59.4]} 6... Nd7 {[%clk 0:02:54.8]} 7. Nf4
{[%clk 0:02:59.4]} 7... dxc4 {[%clk 0:02:43.7]} 8. Bxc4 {[%clk 0:03:00.3]} 8...
Nb6 {[%clk 0:02:44.2]} 9. Bb3 {[%clk 0:02:59.3]} 9... Ned5 {[%clk 0:02:29.7]}
10. O-O {[%clk 0:02:57.7]} 10... Nxf4 {[%clk 0:02:12.5]} 11. Bxf4 {[%clk
0:02:56.1]} 11... Be7 {[%clk 0:02:13]} 12. Be3 {[%clk 0:02:49.5]} 12... Nd5
{[%clk 0:01:47.2]} 13. Nxd5 {[%clk 0:02:42]} 13... cxd5 {[%clk 0:01:46.7]} 14.
Ba4+ {[%clk 0:02:41.2]} 14... Kf8 {[%clk 0:01:47.1]} 15. g4 {[%clk 0:02:40.8]}
15... Bg6 {[%clk 0:01:46.8]} 16. f4 {[%clk 0:02:40.5]} 16... Be4 {[%clk
0:01:46.9]} 17. f5 {[%clk 0:02:40.7]} 17... exf5 {[%clk 0:01:35.9]} 18. gxf5
{[%clk 0:02:39.4]} 18... f6 {[%clk 0:01:35.4]} 19. Qh5 {[%clk 0:02:27]} 19...
Bb4 {[%clk 0:00:56.9]} 20. a3 {[%clk 0:02:15.5]} 20... Ba5 {[%clk 0:00:56.7]}
21. Rac1 {[%clk 0:01:53.9]} 21... Qe7 {[%clk 0:00:45.3]} 22. e6 {[%clk
0:01:36.1]} 22... g5 {[%clk 0:00:30.6]} 23. fxg6 {[%clk 0:01:20]} 23... Bxg6
{[%clk 0:00:30]} 24. Bh6+ {[%clk 0:01:15.4]} 24... Kg8 {[%clk 0:00:30.1]} 25.
Qxd5 {[%clk 0:01:14.4]} 25... Rd8 {[%clk 0:00:26.7]} 26. Bd7 {[%clk 0:01:14.2]}
26... Bb6 {[%clk 0:00:20.2]} 27. Rxf6 {[%clk 0:01:10.8]} 27... Qxf6 {[%clk
0:00:13.4]} 28. e7+ {[%clk 0:01:10.5]} 28... Bf7 {[%clk 0:00:14]} 29. Qg2+
{[%clk 0:01:07.1]} 29... Bg6 {[%clk 0:00:13.1]} 30. exd8=Q+ {[%clk 0:00:58.8]}
30... Bxd8 {[%clk 0:00:14]} 31. Rf1 {[%clk 0:00:51.3]} 31... Qxd4+ {[%clk
0:00:13.3]} 32. Kh1 {[%clk 0:00:51.9]} 1-0